bitfinex-derivatives/quotes_SOLF0:USTF0_20260213
["timestamp","ask_amount","ask_price","bid_price","bid_amount"]
[1770973846607,9.44254358,79.642,79.614,11.3129]
[1770973846810,9.44254358,79.642,79.61,3.46340621]
[1770973847013,9.44254358,79.642,79.6,3.46340621]
[1770973847714,9.44254358,79.642,79.605,11.3141]
[1770973847910,9.43995682,79.639,79.579,23.17593666]
[1770973848110,11.312,79.621,79.58,3.46340621]
[1770973848312,9.37886254,79.62,79.58,3.46340621]
[1770973849411,9.37886254,79.62,79.581,11.3176]
[1770973850414,9.37886254,79.62,79.593,0.07988009]
[1770973852420,9.43191835,79.617,79.593,0.07988009]
[1770973852615,9.43191835,79.617,79.574,11.3185]
[1770973852813,9.39197831,79.613,79.574,11.3185]
[1770973853418,9.39197831,79.613,79.58,3.46340621]
[1770973853615,9.39197831,79.609,79.57,3.46340621]
[1770973854320,9.39197831,79.609,79.577,11.3182]
[1770973854617,9.39197831,79.609,79.57,3.46340621]
[1770973855820,0.08007163,79.597,79.572,11.3189]
[1770973856318,0.08007163,79.597,79.58,3.46340621]
[1770973857117,0.08007163,79.597,79.581,11.3175]
[1770973857822,0.08007163,79.597,79.58,3.46340621]
[1770973858520,0.08007163,79.597,79.58,14.78110621]
[1770973859020,0.08007163,79.597,79.57,3.46340621]
[1770973859718,0.08007163,79.597,79.573,11.3188]
[1770973861218,0.08007163,79.597,79.574,11.3186]
[1770973861614,9.6190506,79.597,79.57,3.46340621]
[1770973861821,9.6190506,79.597,79.564,11.32]
[1770973862421,9.53897897,79.597,79.564,11.32]
[1770973865422,9.53897897,79.597,79.57,11.3192]
[1770973865726,9.51826693,79.609,79.57,3.46340621]
[1770973865926,3.46340621,79.62,79.585,11.3171]
[1770973866126,9.60020049,79.619,79.585,11.3171]
[1770973867424,9.60020049,79.619,79.58,3.46340621]
[1770973867630,9.60020049,79.617,79.57,3.46340621]
[1770973868025,9.60020049,79.617,79.588,11.3165]
[1770973871935,107.54,79.654,79.563,15.53973968]
[1770973871936,9.56394827,79.609,79.563,15.53973968]
[1770973872131,9.56394827,79.609,79.56,3.46340621]
[1770973872435,9.54717762,79.619,79.57,3.46340621]
[1770973872837,9.54717762,79.619,79.587,11.3167]
[1770973874039,9.54717762,79.619,79.58,14.78110621]
[1770973874239,9.54717762,79.619,79.58,3.46340621]
[1770973875738,9.54717762,79.619,79.585,11.317]
[1770973876427,0.0793694,79.61,79.585,11.317]
[1770973881042,0.0793694,79.61,79.573,15.53973968]
[1770973881337,0.0793694,79.61,79.563,23.17593666]
[1770973881338,0.0793694,79.61,79.58,3.46340621]
[1770973881538,0.0793694,79.61,79.587,11.3167]
[1770973882745,9.7081156,79.61,79.58,11.3178]
[1770973882941,9.6287462,79.609,79.56,135.96340621]
[1770973883737,9.6287462,79.607,79.56,135.96340621]
[1770973884447,9.6287462,79.607,79.56,3.46340621]
[1770973884745,0.07960214,79.591,79.56,3.46340621]
[1770973885046,0.07960214,79.591,79.571,11.319]
[1770973885843,0.07960214,79.591,79.576,11.3183]
[1770973886342,9.6287462,79.607,79.576,11.3183]
[1770973886746,0.0804233,79.591,79.576,11.3183]
[1770973893739,0.0804233,79.591,79.553,23.17593666]
[1770973893942,0.0804233,79.591,79.56,3.46340621]
[1770973894547,0.0804233,79.591,79.578,11.318]
[1770973894747,9.66346623,79.618,79.578,11.318]
[1770973895153,9.70364016,79.609,79.572,11.3189]
[1770973895856,9.70364016,79.609,79.577,11.3181]
[1770973896556,9.70364016,79.609,79.585,0.07918179]
[1770973898652,13.16867421,79.62,79.586,11.3168]
[1770973898851,9.705268,79.62,79.586,11.3168]
[1770973900550,9.705268,79.62,79.595,0.07928865]
[1770973904753,9.73878076,79.631,79.595,0.07928865]
[1770973905153,9.73878076,79.631,79.59,3.46378951]
[1770973905650,9.73878076,79.631,79.605,0.08155025]
[1770973906551,3.46378951,79.63,79.605,0.08155025]
[1770973906746,9.73680457,79.629,79.605,0.08155025]
[1770973907756,21.04760457,79.629,79.605,0.08155025]
[1770973907951,9.73680457,79.628,79.605,0.08155025]
[1770973908357,9.73680457,79.628,79.594,11.3158]
[1770973908758,9.72912175,79.619,79.583,11.3174]
[1770973909761,0.07914372,79.609,79.589,11.3164]
[1770973910261,9.76716434,79.639,79.59,3.46378951]
[1770973910458,9.76716434,79.639,79.573,100.26]
[1770973910459,9.76716434,79.639,79.603,11.3145]
[1770973910856,9.76716434,79.639,79.6,3.46378951]
[1770973911057,9.76716434,79.639,79.613,11.313]
[1770973912760,9.72390362,79.651,79.618,11.3123]
[1770973915165,9.72390362,79.651,79.627,0.07949971]
[1770973915558,9.71131409,79.649,79.611,11.3133]
[1770973917268,9.71077219,79.639,79.611,11.3133]
[1770973917462,0.08142876,79.638,79.611,11.3133]
[1770973917658,9.71077219,79.637,79.577,15.54476774]
[1770973917866,9.71077219,79.637,79.6,3.46378951]
[1770973918267,9.71077219,79.637,79.578,131.7]
[1770973918566,9.71077219,79.637,79.6,3.46378951]
[1770973918865,9.71077219,79.637,79.578,131.7]
[1770973919065,9.71077219,79.637,79.6,3.46378951]
[1770973919863,0.08200749,79.626,79.601,11.3147]
[1770973920755,0.08200749,79.626,79.61,3.46378951]
[1770973921164,0.08200749,79.626,79.607,11.314]
[1770973921361,9.69072891,79.646,79.607,11.314]
[1770973922567,0.08117555,79.634,79.607,11.314]
[1770973925468,0.08117555,79.634,79.615,11.3127]
[1770973925668,0.08117555,79.634,79.61,3.46378951]
[1770973926067,9.69072891,79.646,79.61,3.46378951]
[1770973926472,9.69072891,79.646,79.616,11.3126]
[1770973926767,16.09,79.65,79.62,3.46378951]
[1770973927364,16.09,79.65,79.623,11.3116]
[1770973927762,9.71125486,79.67,79.63,3.46378951]
[1770973928775,9.71125486,79.67,79.64,3.46378951]
[1770973928975,9.7071209,79.689,79.64,3.46378951]
[1770973929375,9.7071209,79.683,79.65,3.46378951]
[1770973930268,9.74748998,79.699,79.66,3.46378951]
[1770973930474,9.74748998,79.722,79.69,3.46378951]
[1770973930676,9.74748998,79.739,79.7,3.46378951]
[1770973931577,9.74748998,79.739,79.71,3.46378951]
[1770973931981,2.18370068,79.777,79.662,15.4977429]
[1770973931982,9.74748998,79.759,79.72,3.46378951]
[1770973932370,191.07724837,79.825,79.72,3.46378951]
[1770973932371,9.80773428,79.757,79.72,3.46378951]
[1770973933281,22.5747,79.795,79.7,3.46378951]
[1770973933282,9.80773428,79.749,79.7,3.46378951]
[1770973933877,9.80773428,79.729,79.68,3.46378951]
[1770973934481,9.80773428,79.729,79.69,3.46378951]
[1770973935179,9.80773428,79.729,79.64,483.97202045]
[1770973935180,21.07889002,79.74,79.7,3.46378951]
[1770973935371,175.5357,79.816,79.651,175.8975]
[1770973935372,9.78379002,79.765,79.651,175.8975]
[1770973935574,9.78379002,79.755,79.72,3.46378951]
[1770973935883,9.78379002,79.749,79.7,3.46378951]
[1770973936280,9.78379002,79.749,79.682,100.18]
[1770973936584,9.80515729,79.747,79.71,3.46378951]
[1770973938584,0.08020114,79.736,79.71,3.46378951]
[1770973941587,9.94017016,79.736,79.69,3.46378951]
[1770973941782,9.85996902,79.729,79.69,3.46378951]
[1770973942574,0.08038331,79.717,79.69,3.46378951]
[1770973943683,0.08038331,79.717,79.691,11.302]
[1770973943885,0.08038331,79.717,79.69,3.46378951]
[1770973944689,9.92738978,79.717,79.68,3.46378951]
[1770973945183,9.84700647,79.709,79.615,273.8055]
[1770973945388,22.5862,79.755,79.615,273.8055]
[1770973945389,9.84700647,79.699,79.66,3.46378951]
[1770973945586,9.84700647,79.711,79.67,3.46378951]
[1770973945791,9.84700647,79.709,79.671,11.3048]
[1770973946179,9.84700647,79.709,79.67,3.46378951]
[1770973948288,0.08076161,79.697,79.662,11.3061]
[1770973950094,0.08076161,79.697,79.67,3.46378951]
[1770973950589,0.08076161,79.697,79.66,3.46378951]
[1770973950793,9.89251105,79.695,79.65,3.46378951]
[1770973951592,9.89251105,79.695,79.66,3.46378951]
[1770973952294,9.89251105,79.695,79.651,11.3077]
[1770973952685,3.46378951,79.69,79.65,3.46378951]
[1770973952890,9.89048725,79.689,79.65,3.46378951]
[1770973954089,3.46378951,79.69,79.65,3.46378951]
[1770973954090,11.3026,79.688,79.65,3.46378951]
[1770973954294,0.08209877,79.677,79.643,11.3088]
[1770973954489,9.97081145,79.677,79.643,11.3088]
[1770973954693,9.97081145,79.677,79.64,487.43580996]
[1770973954893,9.88871268,79.677,79.64,487.43580996]
[1770973955395,0.08200374,79.666,79.64,498.74510996]
[1770973956490,0.08200374,79.666,79.64,483.97202045]
[1770973956794,9.97340555,79.666,79.637,135.52]
[1770973956994,9.97340555,79.666,79.631,135.52]
[1770973957194,9.89140181,79.659,79.62,3.46378951]
[1770973957393,9.89140181,79.659,79.621,135.9]
[1770973957796,9.89140181,79.656,79.616,11.3126]
[1770973957995,9.89140181,79.656,79.617,135.98]
[1770973958392,9.89003671,79.649,79.609,11.3136]
[1770973958994,0.08191305,79.637,79.609,11.3136]
[1770973959695,0.08191305,79.637,79.62,3.46378951]
[1770973959895,0.08191305,79.637,79.61,3.46378951]
[1770973960694,9.89465058,79.662,79.622,11.3118]
[1770973960894,9.89465058,79.662,79.63,3.46378951]
[1770973961094,9.89465058,79.662,79.623,105.8]
[1770973962399,21.20085058,79.662,79.624,11.3115]
[1770973963194,3.46035575,79.66,79.624,11.3115]
[1770973963594,21.20085058,79.662,79.624,11.3115]
[1770973965101,21.20085058,79.662,79.635,0.08119374]
[1770973965798,9.90900365,79.661,79.635,0.08119374]
[1770973966702,11.3065,79.66,79.635,0.08119374]
[1770973966902,9.89810895,79.659,79.624,11.3115]
[1770973968103,9.88245511,79.657,79.62,3.46035575]
[1770973968304,9.88245511,79.648,79.615,11.3128]
[1770973972304,9.88245511,79.648,79.621,11.3119]
[1770973972507,9.88245511,79.648,79.62,3.46035575]
[1770973973106,9.88245511,79.648,79.61,3.46035575]
[1770973973310,0.08108582,79.642,79.61,3.46035575]
[1770973973806,0.08108582,79.642,79.615,11.3128]
[1770973974001,0.08108582,79.642,79.61,3.46035575]
[1770973974002,9.88157081,79.641,79.61,3.46035575]
[1770973974907,9.88157081,79.641,79.611,11.3133]
[1770973977811,9.88398863,79.639,79.602,11.3146]
[1770973978703,11.3096,79.638,79.602,11.3146]
[1770973979606,0.08009608,79.628,79.602,11.3146]
[1770973980906,0.08009608,79.628,79.6,3.46035575]
[1770973981111,9.92820319,79.628,79.596,11.3155]
[1770973982615,0.08009608,79.628,79.61,3.46035575]
[1770973982812,0.08009608,79.628,79.6,3.46035575]
[1770973983214,13.30050926,79.64,79.6,3.46035575]
[1770973983215,9.84015351,79.639,79.6,3.46035575]
[1770973984411,0.07973164,79.627,79.6,3.46035575]
[1770973985913,0.07973164,79.627,79.592,11.3161]
[1770973985914,9.84712113,79.627,79.592,11.3161]
[1770973986315,9.74642649,79.625,79.583,11.3173]
[1770973986921,9.74642649,79.625,79.542,267.65002562]
[1770973986922,9.74642649,79.619,79.57,3.46035575]
[1770973987421,22.6171,79.646,79.57,3.46035575]
[1770973987422,9.74642649,79.609,79.57,3.46035575]
[1770973987620,3.46035575,79.61,79.542,267.65002562]
[1770973987621,9.74642649,79.606,79.56,3.46035575]
[1770973987919,9.74642649,79.599,79.55,3.46035575]
[1770973988110,9.70738742,79.595,79.56,3.46035575]
[1770973989622,0.08084143,79.585,79.56,3.46035575]
[1770973991117,9.80164611,79.585,79.542,278.97312562]
[1770973991323,9.80164611,79.585,79.55,3.46035575]
[1770973991821,9.72080468,79.583,79.55,3.46035575]
[1770973992118,9.72080468,79.583,79.542,267.65002562]
[1770973992514,3.46035575,79.58,79.542,267.65002562]
[1770973992715,9.72778872,79.579,79.542,267.65002562]
[1770973992911,9.72778872,79.569,79.53,3.46035575]
[1770973993726,9.72778872,79.566,79.53,3.46035575]
[1770973994830,0.08050628,79.556,79.53,3.46035575]
[1770973995222,0.08050628,79.556,79.53,14.78525575]
[1770973995629,0.08050628,79.556,79.54,3.46035575]
[1770973995924,0.08050628,79.556,79.53,3.46035575]
[1770973997428,0.08050628,79.556,79.52,3.46035575]
[1770973997634,9.78632745,79.556,79.52,3.46035575]
[1770973998830,9.78632745,79.556,79.521,11.3262]
[1770973999032,9.78632745,79.556,79.52,3.46035575]
[1770974001630,9.70032498,79.554,79.515,139.38]
[1770974001833,9.70032498,79.554,79.51,3.46035575]
[1770974002029,9.70032498,79.549,79.5,3.46035575]
[1770974003734,9.69859673,79.537,79.5,3.46035575]
[1770974005242,9.69416267,79.531,79.493,143.56]
[1770974005540,9.69416267,79.525,79.49,147.36035575]
[1770974005935,9.69416267,79.521,79.49,3.46035575]
[1770974006142,9.69416267,79.521,79.481,100.24]
[1770974006331,3.46035575,79.5,79.45,3.46035575]
[1770974006647,9.66530139,79.498,79.454,11.3356]
[1770974006938,100.24,79.544,79.387,176.4821]
[1770974006939,9.66530139,79.489,79.387,176.4821]
[1770974007136,3.46035575,79.48,79.41,480.17505917]
[1770974007344,3.46035575,79.46,79.41,480.17505917]
[1770974007530,9.66530139,79.459,79.42,3.46035575]
[1770974007734,3.46035575,79.45,79.345,23.17593666]
[1770974007934,3.46035575,79.45,79.331,176.6069]
[1770974007935,9.66530139,79.449,79.41,3.46035575]
[1770974008539,9.66530139,79.449,79.408,145.28]
[1770974008540,22.656,79.509,79.43,3.46035575]
[1770974008753,176.1544,79.536,79.44,3.46035575]
[1770974008754,9.56143505,79.475,79.44,3.46035575]
[1770974009045,9.56143505,79.475,79.43,3.46035575]
[1770974009245,9.56143505,79.473,79.43,3.46035575]
[1770974009450,9.56143505,79.469,79.43,149.16035575]
[1770974010241,9.61506892,79.467,79.43,3.46035575]
[1770974011349,9.61506892,79.467,79.42,149.48035575]
[1770974011743,9.61463022,79.464,79.42,3.46035575]
[1770974011945,9.61463022,79.464,79.43,3.46035575]
[1770974012454,9.61463022,79.464,79.42,3.46035575]
[1770974012942,11.3353,79.458,79.42,3.46035575]
[1770974014642,9.61463022,79.464,79.43,3.46035575]
[1770974015153,22.6556,79.51,79.418,146.38]
[1770974015154,9.58259222,79.474,79.44,3.46035575]
[1770974015444,9.58259222,79.474,79.431,146.86]
[1770974015645,9.58259222,79.469,79.42,3.46035575]
[1770974015951,9.58259222,79.459,79.42,3.46035575]
[1770974016751,11.3352,79.458,79.42,3.46035575]
[1770974016952,9.58259222,79.459,79.42,3.46035575]
[1770974017145,9.58259222,79.459,79.43,3.46035575]
[1770974017748,0.08009698,79.452,79.43,3.46035575]
[1770974020252,0.08009698,79.452,79.42,3.46035575]
[1770974021149,11.41609698,79.452,79.42,3.46035575]
[1770974022155,9.56602023,79.449,79.402,11.3431]
[1770974022360,9.56602023,79.449,79.4,3.46035575]
[1770974022553,9.56602023,79.449,79.4,151.64035575]
[1770974022855,9.56619021,79.424,79.38,3.48161848]
[1770974023149,9.56619021,79.424,79.39,3.48161848]
[1770974024055,9.56619021,79.424,79.371,148.38]
[1770974024255,9.56619021,79.424,79.38,3.48161848]
[1770974024457,11.3406,79.421,79.38,14.82781848]
[1770974024957,11.3406,79.421,79.39,3.48161848]
[1770974025259,11.3406,79.421,79.38,11.3462]
[1770974025561,11.3406,79.421,79.38,14.82781848]
[1770974026352,11.3406,79.421,79.39,3.48161848]
[1770974026656,9.49212439,79.418,79.38,3.48161848]
[1770974027050,9.49212439,79.418,79.37,3.48161848]
[1770974027447,0.07941703,79.407,79.37,3.48161848]
[1770974027859,0.07941703,79.407,79.371,11.3476]
[1770974028059,0.07941703,79.407,79.38,3.48161848]
[1770974028660,0.07941703,79.407,79.371,11.3476]
[1770974028856,9.35015576,79.397,79.365,148.78]
[1770974029058,9.35015576,79.397,79.37,3.48161848]
[1770974029359,20.69035576,79.423,79.39,3.48161848]
[1770974029663,9.35015576,79.423,79.39,3.48161848]
[1770974029856,9.35015576,79.423,79.375,100.26]
[1770974029857,11.3385,79.435,79.4,3.48161848]
[1770974030055,11.3385,79.435,79.392,11.3445]
[1770974030256,9.43472725,79.434,79.392,11.3445]
[1770974031158,9.43472725,79.434,79.4,3.48161848]
[1770974031356,9.43472725,79.434,79.41,3.48161848]
[1770974031557,9.43472725,79.459,79.42,3.48161848]
[1770974031961,9.43472725,79.459,79.41,3.48161848]
[1770974032163,9.4338911,79.439,79.401,100.26]
[1770974032862,9.4338911,79.439,79.4,3.48161848]
[1770974033064,20.7731911,79.43,79.39,3.48161848]
[1770974034456,9.4338911,79.43,79.4,3.48161848]
[1770974041562,3.48161848,79.44,79.4,14.82501848]
[1770974041761,187.85872095,79.505,79.341,176.5849]
[1770974041762,9.40911574,79.468,79.43,3.48161848]
[1770974042361,11.3341,79.466,79.43,3.48161848]
[1770974043365,11.3341,79.466,79.431,11.3389]
[1770974043671,11.3322,79.479,79.44,3.48161848]
[1770974043964,11.3306,79.491,79.45,3.48161848]
[1770974044366,9.42640515,79.494,79.46,3.48161848]
[1770974045162,9.4470048,79.507,79.47,3.48161848]
[1770974046372,9.38120239,79.521,79.48,3.48161848]
[1770974047964,9.38120239,79.521,79.49,3.48161848]
[1770974048671,9.38120239,79.521,79.48,3.48161848]
[1770974049365,3.48161848,79.53,79.48,3.48161848]
[1770974049366,20.57003261,79.52,79.48,3.48161848]
[1770974049568,20.57003261,79.52,79.423,37.74]
[1770974049569,9.24363261,79.519,79.47,3.48161848]
[1770974049767,9.24363261,79.519,79.449,100.28]
[1770974049768,9.24363261,79.519,79.48,3.48161848]
[1770974050769,9.25064931,79.517,79.48,3.48161848]
[1770974051364,9.25064931,79.515,79.47,3.48161848]
[1770974052473,9.25245017,79.499,79.46,3.48161848]
[1770974052965,9.25245017,79.499,79.47,3.48161848]
[1770974053372,9.25245017,79.499,79.46,14.81651848]
[1770974054765,3.48161848,79.51,79.47,3.48161848]
[1770974055161,9.22677618,79.509,79.47,3.48161848]
[1770974055771,3.48161848,79.51,79.46,3.48161848]
[1770974055772,9.22677618,79.507,79.46,3.48161848]
[1770974056370,11.329,79.502,79.462,11.3345]
[1770974056567,20.57131693,79.502,79.462,11.3345]
[1770974056766,9.24231693,79.502,79.462,11.3345]
[1770974056967,9.24231693,79.502,79.47,3.48161848]
[1770974058369,9.24231693,79.502,79.46,14.81641848]
[1770974060480,9.24231693,79.502,79.466,11.334]
[1770974061069,0.08052118,79.492,79.466,11.334]
[1770974062378,0.08052118,79.492,79.471,11.3333]
[1770974062975,9.23311192,79.499,79.464,11.3343]
[1770974063181,9.23311192,79.499,79.46,3.48161848]
[1770974063880,9.23311192,79.519,79.423,37.74]
[1770974064077,9.23311192,79.519,79.47,3.48161848]
[1770974064877,11.3285,79.505,79.47,3.48161848]
[1770974065277,9.22702532,79.506,79.472,11.3331]
[1770974065476,0.08027147,79.495,79.472,11.3331]
[1770974066280,0.08027147,79.495,79.465,11.3341]
[1770974066475,0.08027147,79.495,79.42,22.6812]
[1770974066682,0.08027147,79.495,79.46,3.48161848]
[1770974066883,9.26535576,79.499,79.46,3.48161848]
[1770974067282,11.3301,79.494,79.46,3.48161848]
[1770974067673,9.26535576,79.499,79.47,3.48161848]
[1770974068072,9.26535576,79.499,79.46,11.3349]
[1770974068073,9.26535576,79.499,79.46,14.81651848]
[1770974069785,11.3296,79.497,79.46,14.81651848]
[1770974070387,9.17572247,79.494,79.46,3.48161848]
[1770974072789,9.17572247,79.494,79.463,11.3344]
[1770974073880,11.3302,79.493,79.457,11.3353]
[1770974074086,9.17304759,79.492,79.457,11.3353]
[1770974074891,9.17304759,79.492,79.46,3.48161848]
[1770974076990,11.3307,79.49,79.457,11.3353]
[1770974077192,9.16390922,79.489,79.457,11.3353]
[1770974077390,9.16390922,79.489,79.46,3.48161848]
[1770974078292,9.18389869,79.478,79.44,3.48161848]
[1770974079395,0.08000127,79.467,79.44,3.48161848]
[1770974079897,0.08000127,79.467,79.446,11.3368]
[1770974080092,3.48161848,79.49,79.45,3.48161848]
[1770974080295,9.18315368,79.496,79.46,3.48161848]
[1770974080495,9.22315431,79.494,79.45,3.48161848]
[1770974081896,9.22315431,79.491,79.45,3.48161848]
[1770974082902,9.21001759,79.488,79.453,11.3358]
[1770974083393,9.21001759,79.469,79.403,23.17593666]
[1770974083586,9.21001759,79.459,79.41,3.48161848]
[1770974084196,9.25808593,79.457,79.42,3.48161848]
[1770974084992,9.25808593,79.457,79.42,3.47811901]
[1770974085196,11.3339,79.468,79.43,3.47811901]
[1770974085996,11.3339,79.468,79.431,11.339]
[1770974086200,9.25808593,79.469,79.44,3.47811901]
[1770974087694,9.25808593,79.469,79.441,11.3375]
[1770974098821,9.25307284,79.467,79.433,11.3386]
[1770974099023,9.25307284,79.467,79.44,3.47811901]
[1770974100519,9.25307284,79.467,79.434,11.3385]
[1770974100724,9.25307284,79.467,79.422,146.02]
[1770974101422,9.25307284,79.467,79.43,3.47811901]
[1770974101819,9.25307284,79.467,79.389,37.74]
[1770974101820,9.25843618,79.457,79.41,3.47811901]
[1770974102422,9.25843618,79.457,79.426,0.0793195]
[1770974102622,9.25843618,79.457,79.43,3.47811901]
[1770974102817,9.25843618,79.457,79.426,0.0793195]
[1770974103017,9.25843618,79.457,79.43,3.47811901]
[1770974105121,11.3341,79.466,79.431,11.3389]
[1770974105530,20.57318456,79.476,79.44,3.47811901]
[1770974105721,9.24058456,79.475,79.44,3.47811901]
[1770974106822,9.28057099,79.471,79.44,3.47811901]
[1770974108130,9.28057099,79.471,79.441,11.3376]
[1770974108331,9.25800182,79.489,79.45,3.47811901]
[1770974109824,11.3311,79.487,79.46,3.47811901]
[1770974110434,11.3311,79.487,79.453,11.3358]
[1770974110731,9.19677789,79.486,79.453,11.3358]
[1770974113438,9.19677789,79.486,79.46,3.47811901]
[1770974115133,9.19677789,79.486,79.452,11.3359]
[1770974117240,9.19677789,79.486,79.458,11.3351]
[1770974120334,9.19677789,79.486,79.464,0.07993198]
[1770974121839,9.19420937,79.483,79.449,11.3364]
[1770974122941,9.15320999,79.481,79.449,11.3364]
[1770974123744,0.08005763,79.473,79.449,11.3364]
[1770974124545,0.08005763,79.473,79.453,11.3359]
[1770974124747,0.08005763,79.473,79.46,3.47811901]
[1770974124948,9.11878304,79.498,79.46,3.47811901]
[1770974125149,11.3309,79.489,79.456,11.3354]
[1770974125447,11.3309,79.489,79.45,3.47811901]
[1770974125648,20.44968304,79.489,79.45,3.47811901]
[1770974126442,11.3311,79.487,79.45,14.81431901]
[1770974127143,11.3297,79.497,79.46,14.81291901]
[1770974127346,11.3297,79.497,79.46,3.47811901]
[1770974127844,11.3283,79.507,79.47,14.81151901]
[1770974128050,9.12490735,79.506,79.47,14.81151901]
[1770974129852,9.12975025,79.504,79.47,14.81151901]
[1770974131952,9.12975025,79.504,79.47,11.3334]
[1770974132151,9.15163823,79.496,79.46,3.47811901]
[1770974132352,3.47811901,79.49,79.458,11.3351]
[1770974132549,9.15279169,79.489,79.458,11.3351]
[1770974136049,9.14616871,79.488,79.451,11.3361]
[1770974136250,9.14616871,79.488,79.44,3.47811901]
[1770974136647,9.14616871,79.488,79.45,3.47811901]
[1770974137259,9.15414099,79.499,79.46,3.47811901]
[1770974137459,9.15414099,79.499,79.47,3.47811901]
[1770974137651,9.15414099,79.499,79.46,3.47811901]
[1770974138747,9.18034107,79.497,79.461,11.3347]
[1770974142662,9.18034107,79.497,79.467,11.3339]
[1770974143066,9.18034107,79.497,79.46,3.47811901]
[1770974143467,9.14505833,79.495,79.46,14.81291901]
[1770974144967,9.14505833,79.495,79.46,14.80917064]
[1770974145760,9.14505833,79.495,79.465,11.3341]
[1770974146161,9.14505833,79.495,79.459,11.335]
[1770974146366,9.14505833,79.495,79.46,3.47437064]
[1770974146863,9.14505833,79.495,79.462,11.3345]
[1770974149370,9.1269463,79.493,79.45,3.47437064]
[1770974149863,9.1269463,79.489,79.44,147.85437064]
[1770974150768,9.03761093,79.486,79.45,11.3363]
[1770974151572,9.03761093,79.484,79.44,3.47437064]
[1770974152361,9.03761093,79.484,79.45,3.47437064]
[1770974153274,9.03761093,79.484,79.46,3.47437064]
[1770974154074,9.03761093,79.484,79.452,11.336]
[1770974154673,9.03761093,79.484,79.45,3.47437064]
[1770974155474,9.03761093,79.484,79.445,11.337]
[1770974155873,9.03761093,79.484,79.459,0.07969062]
[1770974156669,9.05139542,79.48,79.445,11.337]
[1770974159075,0.08030332,79.47,79.445,11.337]
[1770974160780,0.08030332,79.47,79.45,3.47437064]
[1770974161577,9.00006817,79.503,79.46,3.47437064]
[1770974161777,9.00006817,79.503,79.47,3.47437064]
[1770974161972,9.00006817,79.503,79.46,3.47437064]
[1770974162780,9.00006817,79.503,79.469,11.3335]
[1770974163681,9.00006817,79.503,79.462,11.3346]
[1770974164582,9.00006817,79.503,79.468,11.3337]
[1770974165077,9.00006817,79.503,79.478,0.07940152]
[1770974166975,11.3277,79.511,79.478,0.07940152]
[1770974167170,8.96242045,79.514,79.48,14.80637064]
[1770974169783,3.47437064,79.52,79.478,0.07940152]
[1770974169784,8.97810448,79.509,79.478,0.07940152]
[1770974173985,8.97810448,79.509,79.48,3.47437064]
[1770974174381,8.97900105,79.523,79.49,3.47437064]
[1770974175785,8.97900105,79.523,79.5,3.47437064]
[1770974176787,8.97536531,79.538,79.5,3.47437064]
[1770974177188,8.97536531,79.538,79.495,11.3298]
[1770974177389,8.97536531,79.538,79.5,3.47437064]
[1770974178190,8.97536531,79.538,79.45,30.99486429]
[1770974178191,11.3227,79.546,79.51,3.47437064]
[1770974178387,9.01616187,79.546,79.51,3.47437064]
[1770974178594,9.01616187,79.557,79.52,3.47437064]
[1770974178784,9.01616187,79.557,79.513,11.3273]
[1770974179886,9.01616187,79.554,79.513,11.3273]
[1770974180596,9.01616187,79.554,79.52,3.47437064]
[1770974182296,9.05112079,79.552,79.51,3.47437064]
[1770974182489,9.05112079,79.549,79.51,3.47437064]
[1770974183888,9.05112079,79.549,79.511,11.3276]
[1770974184692,9.05112079,79.549,79.51,3.47437064]
[1770974184693,9.05112079,79.549,79.517,11.3267]
[1770974184893,9.05112079,79.549,79.51,3.47437064]
[1770974186194,9.05112079,79.549,79.516,11.3269]
[1770974186392,9.05112079,79.549,79.52,3.47437064]
[1770974186791,9.05112079,79.549,79.525,0.08047624]
[1770974188907,9.05980794,79.566,79.53,3.47437064]
[1770974189199,9.05980794,79.566,79.525,0.08047624]
[1770974189200,9.05980794,79.579,79.54,3.47437064]
[1770974189407,9.05980794,79.579,79.55,3.47437064]
[1770974189606,9.05980794,79.579,79.55,14.79637064]
[1770974190201,9.05891231,79.592,79.55,14.79637064]
[1770974191108,9.05891231,79.592,79.52,100.34]
[1770974191109,9.05891231,79.609,79.57,3.47437064]
[1770974192095,9.05937628,79.599,79.55,3.47437064]
[1770974192501,9.07853486,79.597,79.55,3.47437064]
[1770974192901,9.07853486,79.597,79.56,3.47437064]
[1770974193504,24.80164693,79.653,79.58,3.47437064]
[1770974193505,3.47437064,79.62,79.58,3.47437064]
[1770974193705,9.07853486,79.622,79.58,3.47437064]
[1770974194607,9.1103544,79.634,79.59,3.47437064]
[1770974195002,9.1103544,79.629,79.59,3.47437064]
[1770974195206,9.1103544,79.629,79.6,3.47437064]
[1770974195609,9.11062119,79.645,79.61,3.47437064]
[1770974195805,9.11062119,79.659,79.61,3.47437064]
[1770974196703,9.09040158,79.658,79.611,11.3133]